[Event "Hull 4NCL GM Congress 2019"]
[Site "Hull"]
[Date "2019.11.01"]
[Round "4.2"]
[White "Gonda, Laszlo"]
[Black "Eggleston, David J"]
[Result "1/2-1/2"]
[ECO "E05"]
[WhiteElo "2541"]
[BlackElo "2394"]
[Annotator "ChessBase"]
[PlyCount "41"]
[EventDate "2019.10.30"]
[EventType "tourn"]
[EventCountry "ENG"]
[SourceTitle "playchess.com"]
[Source "ChessBase"]
[SourceQuality "1"]
[TimeControl "5400+30"]

1. Nf3 {[%emt 0:00:00]} Nf6 {[%emt 0:00:25]} 2. g3 {[%emt 0:00:00]} e6 {[%emt 0:00:31]} 3. Bg2 {[%emt 0:00:00]} d5 {[%emt 0:00:08]} 4. O-O {[%emt 0:00:00]} Be7 {[%emt 0:00:13]} 5. c4 {[%emt 0:00:06]} O-O {[%emt 0:00:08]} 6. d4 {[%emt 0:00:06]} dxc4 {[%emt 0:00:08]} 7. Qc2 {[%emt 0:00:07]} a6 {[%emt 0:00:06]} 8. a4 {[%emt 0:00:18]} Bd7 {[%emt 0:00:27]} 9. Qxc4 {[%emt 0:00:29]} Bc6 {[%emt 0:00:27]} 10. Bg5 {[%emt 0:00:08]} Bd5 {[%emt 0:00:21]} 11. Qd3 {[%emt 0:00:16]} Be4 {[%emt 0:00:58]} 12. Qe3 {[%emt 0:00:54]} Nbd7 {[%emt 0:04:43]} 13. Nc3 {[%emt 0:11:15]} Bc6 {[%emt 0:01:32]} 14. Qd3 {[%emt 0:01:03]} h6 {[%emt 0:22:02]} 15. Bxf6 {[%emt 0:01:14]} Bxf6 {[%emt 0:00:30]} 16. b4 {[%emt 0:13:05]} Bxf3 {[%emt 0:02:04]} 17. Bxf3 {[%emt 0:00:25]} c6 {[%emt 0:00:07]} 18. Ne4 {[%emt 0:10:07]} Be7 {[%emt 0:01:29]} 19. Rab1 {[%emt 0:06:48]} a5 {[%emt 0:14:54]} 20. bxa5 {[%emt 0:10:12]} Qc7 {[%emt 0:00:29]} 21. Nd2 {[%emt 0:00:21]} 1/2-1/2

[Event "Hull 4NCL GM Congress 2019"]
[Site "Hull"]
[Date "2019.11.01"]
[Round "4.3"]
[White "Harvey, Marcus R"]
[Black "Greet, Andrew N"]
[Result "1-0"]
[ECO "C07"]
[WhiteElo "2405"]
[BlackElo "2414"]
[Annotator "NA"]
[PlyCount "167"]
[EventDate "2019.10.30"]
[EventType "tourn"]
[EventCountry "ENG"]
[SourceTitle "playchess.com"]
[Source "ChessBase"]
[SourceQuality "1"]
[TimeControl "5400+30"]

1. e4 {[%emt 0:01:03]} e6 {[%emt 0:00:00]} 2. d4 {[%emt 0:00:05]} d5 {[%emt 0:00:00]} 3. Nd2 {[%emt 0:00:05]} c5 {[%emt 0:00:16]} 4. Ngf3 {[%emt 0:00:03]} cxd4 {[%emt 0:00:58]} 5. Nxd4 {[%emt 0:00:24]} Nc6 {[%emt 0:00:19]} 6. Bb5 {[%emt 0:00:03]} Bd7 {[%emt 0:00:06]} 7. Nxc6 {[%emt 0:00:04]} bxc6 {[%emt 0:00:07]} 8. Bd3 {[%emt 0:00:02]} Bd6 {[%emt 0:00:23] C07: French Tarrasch: 3...c5, 4 Ngf3 and 4 exd5 Qxd5} (8... Qc7 9. Qe2 Ne7 10. Nf3 Ng6 11. e5 c5 12. c4 dxc4 13. Bxc4 Be7 14. h4 Bc6 15. h5 Nf8 16. h6 g6 {1-0 (33) Navara,D (2734)-Vitiugov,N (2727) Riga 2019}) 9. Qe2 {[%emt 0:00:05]} Ne7 {[%emt 0:00:30]} 10. Nf3 {[%emt 0:00:04]} Ng6 {[%emt 0:03:05]} 11. e5 {[%emt 0:00:14]} Bc7 {[%emt 0:01:06]} 12. O-O {[%emt 0:00:19]} f6 {[%emt 0:13:27]} 13. Bxg6+ {[%emt 0:05:57]} hxg6 {[%emt 0:00:07]} 14. Re1 {[%emt 0:00:03]} Kf7 $146 {[%emt 0:05:34]} ({Predecessor:} 14... Rb8 15. c4 Rh5 16. Bf4 {½-½ (54) Melamed,T (2318)-Giemsa,S (2261) Berlin 2016}) 15. b3 {[%emt 0:06:01]} Rh5 {[%emt 0:01:43]} (15... g5 $5 {[%cal Rg5g4]} 16. h3 Qg8 $11) 16. Bb2 {[%emt 0:04:36]} Qh8 {[%emt 0:02:14]} 17. Qa6 {[%emt 0:02:53]} g5 {[%emt 0:06:34]} 18. Qb7 {[%emt 0:00:36]} (18. g4 $1 $11 Rh6 19. Bd4) 18... Qb8 {[%emt 0:00:27]} 19. Qxb8 {[%emt 0:00:07]} Rxb8 {[%emt 0:00:05]} 20. h3 $17 {[%emt 0:17:47]} c5 {[%emt 0:08:34]} 21. Ba3 {[%emt 0:00:45]} Bb6 {[%emt 0:00:30]} 22. c4 {[%emt 0:00:33]} dxc4 {[%emt 0:26:19]} 23. bxc4 {[%emt 0:00:53]} Bc6 {[%emt 0:00:20]} 24. Nd2 {[%emt 0:02:23]} Rh4 {[%emt 0:01:53]} 25. Nb3 {[%emt 0:07:39]} g4 {[%emt 0:03:09]} 26. Re3 {[%emt 0:00:56]} gxh3 {[%emt 0:02:25]} 27. Rxh3 {[%emt 0:01:28]} Rxh3 {[%emt 0:00:36]} 28. gxh3 {[%emt 0:00:06]} Rh8 {[%emt 0:00:10]} 29. Kf1 {[%emt 0:08:53]} Rxh3 {[%emt 0:02:26]} 30. Ke2 {[%emt 0:00:29]} Rh5 {[%emt 0:02:01]} 31. exf6 {[%emt 0:00:32]} gxf6 {[%emt 0:00:07]} 32. Rd1 {[%emt 0:01:06]} Re5+ {[%emt 0:00:28]} 33. Kd2 {[%emt 0:00:50]} Rf5 {[%emt 0:01:36]} 34. Ke3 {[%emt 0:01:43]} Re5+ {[%emt 0:01:46]} 35. Kd2 {[%emt 0:02:07]} Ke7 {[%emt 0:04:08]} 36. Rg1 {[%emt 0:02:55]} Kd6 {[%emt 0:01:31]} 37. Rg3 {[%emt 0:00:09]} Rf5 {[%emt 0:02:03]} 38. Rd3+ {[%emt 0:00:30]} Kc7 {[%emt 0:00:17]} 39. Ke2 {[%emt 0:00:16]} Be8 {[%emt 0:01:22]} 40. Re3 {[%emt 0:00:52]} Bh5+ {[%emt 0:01:35]} 41. Ke1 {[%emt 0:00:41]} Bf7 {[%emt 0:00:26]} 42. Rg3 {[%emt 0:00:18]} Kc6 {[%emt 0:00:09]} 43. Rg7 {[%emt 0:00:33]} Bh5 {[%emt 0:00:25]} 44. Bc1 {[%emt 0:01:05]} Bf3 {[%emt 0:02:26]} 45. Be3 {[%emt 0:00:21]} Rh5 {[%emt 0:00:29]} 46. Rg6 {[%emt 0:02:12]} Rf5 {[%emt 0:02:26]} 47. Kd2 {[%emt 0:04:56]} Be4 {[%emt 0:00:24]} 48. Rg4 {[%emt 0:01:15]} Bb1 {[%emt 0:00:20]} 49. Kc3 {[%emt 0:01:01]} Bxa2 {[%emt 0:03:13]} 50. Nc1 {[%emt 0:00:19]} Ba5+ {[%emt 0:01:30]} 51. Kb2 {[%emt 0:00:11]} Bxc4 {[%emt 0:01:25]} 52. Rxc4 {[%emt 0:00:05]} Bb4 {[%emt 0:00:38]} 53. Kb3 {[%emt 0:02:10]} a5 {[%emt 0:00:37]} 54. Ne2 {[%emt 0:01:01]} e5 {[%emt 0:01:02]} 55. Ng3 {[%emt 0:01:24]} Rf3 {[%emt 0:00:06]} 56. Ne4 {[%emt 0:01:07]} Kd5 {[%emt 0:01:12]} 57. Nc3+ {[%emt 0:01:29]} Kd6 {[%emt 0:00:52]} 58. Rh4 {[%emt 0:01:24]} f5 {[%emt 0:00:19]} 59. Rh6+ {[%emt 0:00:12]} Kd7 {[%emt 0:00:07]} 60. Ne2 {[%emt 0:00:33]} f4 {[%emt 0:01:05]} 61. Ng1 {[%emt 0:00:26]} fxe3 {[%emt 0:00:17]} 62. Nxf3 {[%emt 0:00:06]} e2 {[%emt 0:00:12]} 63. Nxe5+ {[%emt 0:01:28]} Ke7 {[%emt 0:00:11]} 64. Nf3 {[%emt 0:00:17]} e1=Q {[%emt 0:00:08]} 65. Nxe1 {[%emt 0:00:04]} Bxe1 {[%emt 0:00:04]} 66. f3 {[%emt 0:00:11]} Bd2 {[%emt 0:00:39]} 67. Rc6 {[%emt 0:00:27]} Bb4 {[%emt 0:00:06]} 68. Ra6 {[%emt 0:00:18]} Kf7 {[%emt 0:00:20]} 69. Kc4 {[%emt 0:00:07]} Ke7 {[%emt 0:00:21]} 70. Kd5 {[%emt 0:00:13]} Kf7 {[%emt 0:00:10]} 71. Kc4 {[%emt 0:02:33]} Ke7 {[%emt 0:00:14]} 72. Kb3 {[%emt 0:00:03]} Kf7 {[%emt 0:00:10]} 73. Rc6 {[%emt 0:00:04]} Ke7 {[%emt 0:00:08]} 74. Rb6 {[%emt 0:00:05]} Kf7 {[%emt 0:00:08]} 75. Ra6 {[%emt 0:00:05]} Ke7 {[%emt 0:00:05]} 76. Kc4 {[%emt 0:00:04]} Kf7 {[%emt 0:00:05]} 77. Kd5 {[%emt 0:00:03]} Ke7 {[%emt 0:02:07]} 78. f4 {[%emt 0:00:13]} Kf7 {[%emt 0:00:13]} 79. f5 {[%emt 0:00:13]} Kg7 {[%emt 0:03:07]} 80. f6+ {[%emt 0:01:00]} Kg6 {[%emt 0:00:05]} 81. Ke6 {[%emt 0:00:03]} c4 {[%emt 0:00:04]} 82. f7 {[%emt 0:00:04]} c3 {[%emt 0:00:15]} 83. Rc6 {[%emt 0:00:05]} Kg5 {[%emt 0:01:01]} 84. Rxc3 {[%emt 0:00:13]} 1-0

[Event "Hull 4NCL GM Congress 2019"]
[Site "Hull"]
[Date "2019.11.01"]
[Round "4.4"]
[White "Turner, Matthew J"]
[Black "Palliser, Richard J D"]
[Result "1-0"]
[ECO "D00"]
[WhiteElo "2519"]
[BlackElo "2413"]
[Annotator "ChessBase"]
[PlyCount "49"]
[EventDate "2019.10.30"]
[EventType "tourn"]
[EventCountry "ENG"]
[SourceTitle "playchess.com"]
[Source "ChessBase"]
[SourceQuality "1"]
[TimeControl "5400+30"]

1. d4 {[%emt 0:00:00]} Nf6 {[%emt 0:00:08]} 2. Nc3 {[%emt 0:00:03]} d5 {[%emt 0:00:05]} 3. Bf4 {[%emt 0:00:18]} e6 {[%emt 0:00:25]} 4. e3 {[%emt 0:00:17]} Bb4 {[%emt 1:31:22]} 5. Nge2 {[%emt 1:31:52]} O-O {[%emt 0:00:00]} 6. a3 {[%emt 0:00:00]} Bd6 {[%emt 0:00:00]} 7. g3 {[%emt 0:00:00]} b6 {[%emt 0:00:00]} 8. Bg2 {[%emt 0:00:00]} Bb7 {[%emt 0:00:00]} 9. O-O {[%emt 0:00:00]} Be7 {[%emt 0:00:00]} 10. h3 {[%emt 0:00:00]} Nh5 {[%emt 0:00:00]} 11. e4 {[%emt 0:00:00]} Nxf4 {[%emt 0:00:00]} 12. Nxf4 {[%emt 0:00:00]} dxe4 {[%emt 0:00:00]} 13. Nxe4 {[%emt 0:00:00]} Nd7 {[%emt 0:00:00]} 14. Re1 {[%emt 0:00:00]} Rb8 {[%emt 0:00:00]} 15. c3 {[%emt 0:00:00]} Re8 {[%emt 0:00:00]} 16. Qe2 {[%emt 0:00:00]} c5 {[%emt 0:00:00]} 17. Rad1 {[%emt 0:00:00]} cxd4 {[%emt 0:00:00]} 18. cxd4 {[%emt 0:00:00]} Bf8 {[%emt 0:00:00]} 19. Qb5 {[%emt 0:00:00]} a6 {[%emt 0:00:00]} 20. Qb3 {[%emt 0:00:00]} b5 {[%emt 0:00:00]} 21. h4 {[%emt 0:00:00]} Qa5 {[%emt 0:00:00]} 22. Ng5 {[%emt 0:00:00]} Bxg2 {[%emt 0:00:00]} 23. Kxg2 {[%emt 0:00:00]} b4 {[%emt 0:00:00]} 24. d5 {[%emt 0:00:00]} bxa3 {[%emt 0:00:00]} 25. Qc2 {[%emt 0:00:00]} 1-0

[Event "Hull 4NCL GM Congress 2019"]
[Site "Hull"]
[Date "2019.11.01"]
[Round "4.5"]
[White "Plat, Vojtech"]
[Black "Roberson, Peter T"]
[Result "1-0"]
[ECO "D37"]
[WhiteElo "2573"]
[BlackElo "2437"]
[Annotator "ChessBase"]
[PlyCount "185"]
[EventDate "2019.10.30"]
[EventType "tourn"]
[EventCountry "ENG"]
[SourceTitle "playchess.com"]
[Source "ChessBase"]
[SourceQuality "1"]
[TimeControl "5400+30"]

1. d4 {[%emt 0:00:08]} Nf6 {[%emt 0:00:00]} 2. c4 {[%emt 0:00:04]} e6 {[%emt 0:00:00]} 3. Nc3 {[%emt 0:00:07]} Bb4 {[%emt 0:00:00]} 4. Qc2 {[%emt 0:00:06]} O-O {[%emt 0:00:00]} 5. Nf3 {[%emt 0:00:18]} c5 {[%emt 0:02:25]} 6. e3 {[%emt 0:04:28]} d5 {[%emt 0:08:11]} 7. dxc5 {[%emt 0:02:23]} Bxc5 {[%emt 0:03:23]} 8. Bd3 {[%emt 0:00:07]} dxc4 {[%emt 0:04:51]} 9. Bxc4 {[%emt 0:00:05]} b6 {[%emt 0:00:34]} 10. O-O {[%emt 0:00:26]} Bb7 {[%emt 0:00:10]} 11. Qe2 {[%emt 0:01:31]} Nbd7 {[%emt 0:01:33]} 12. Ba6 {[%emt 0:06:19]} Bxa6 {[%emt 0:10:09]} 13. Qxa6 {[%emt 0:00:06]} Bb4 {[%emt 0:08:45]} 14. Bd2 {[%emt 0:04:51]} Qc8 {[%emt 0:06:36]} 15. Qa4 {[%emt 0:01:35]} Be7 {[%emt 0:50:53]} 16. Rac1 {[%emt 0:06:09]} Qb7 {[%emt 0:00:00]} 17. Nd4 {[%emt 0:05:01]} Rac8 {[%emt 0:00:00]} 18. b4 {[%emt 0:01:53]} Rfd8 {[%emt 0:00:00]} 19. Rfd1 {[%emt 0:02:19]} Ne5 {[%emt 0:00:00]} 20. Be1 {[%emt 0:00:06]} a6 {[%emt 0:00:00]} 21. b5 {[%emt 0:03:45]} axb5 {[%emt 0:00:00]} 22. Qxb5 {[%emt 0:01:19]} Nc6 {[%emt 0:00:00]} 23. Nb3 {[%emt 0:07:58]} Rxd1 {[%emt 0:00:00]} 24. Rxd1 {[%emt 0:00:11]} Rd8 {[%emt 0:00:00]} 25. Rb1 {[%emt 0:03:12]} Na7 {[%emt 0:00:00]} 26. Qe2 {[%emt 0:00:07]} Nd5 {[%emt 0:00:00]} 27. h3 {[%emt 0:07:19]} h6 {[%emt 0:00:47]} 28. f3 {[%emt 0:13:00]} Nxc3 {[%emt 0:02:55]} 29. Bxc3 {[%emt 0:00:02]} Qd5 {[%emt 0:00:09]} 30. Qb2 {[%emt 0:04:30]} Bf8 {[%emt 0:01:21]} 31. Bd4 {[%emt 0:01:03]} Nc8 {[%emt 0:00:16]} 32. Rc1 {[%emt 0:01:53]} b5 {[%emt 0:01:53]} 33. e4 {[%emt 0:01:17]} Qa8 {[%emt 0:00:25]} 34. Nc5 {[%emt 0:03:01]} Nd6 {[%emt 0:00:24]} 35. Bf2 {[%emt 0:00:07]} Nb7 {[%emt 0:01:10]} 36. Nxb7 {[%emt 0:02:05]} Qxb7 {[%emt 0:00:02]} 37. Rb1 {[%emt 0:03:32]} Qa6 {[%emt 0:00:57]} 38. Qe2 {[%emt 0:00:07]} Rb8 {[%emt 0:00:38]} 39. Bg3 {[%emt 0:01:09]} Rb7 {[%emt 0:00:20]} 40. Kh2 {[%emt 0:00:40]} Bd6 {[%emt 0:00:25]} 41. f4 {[%emt 0:00:06]} Qa4 {[%emt 0:00:39]} 42. Rd1 {[%emt 0:00:49]} Be7 {[%emt 0:00:20]} 43. f5 {[%emt 0:00:46]} Qc4 {[%emt 0:00:33]} 44. Qf3 {[%emt 0:00:07]} Ra7 {[%emt 0:00:41]} 45. fxe6 {[%emt 0:05:21]} Qxe6 {[%emt 0:00:11]} 46. Rd5 {[%emt 0:00:09]} Rxa2 {[%emt 0:00:46]} 47. Rxb5 {[%emt 0:00:46]} Ra8 {[%emt 0:00:22]} 48. Bf4 {[%emt 0:01:36]} Re8 {[%emt 0:00:29]} 49. Re5 {[%emt 0:00:32]} Qd7 {[%emt 0:00:26]} 50. Qg3 {[%emt 0:00:26]} Bf8 {[%emt 0:00:23]} 51. Rd5 {[%emt 0:01:40]} Qc6 {[%emt 0:00:25]} 52. Qd3 {[%emt 0:02:35]} Qg6 {[%emt 0:00:36]} 53. Rd4 {[%emt 0:00:11]} Qe6 {[%emt 0:00:39]} 54. Rc4 {[%emt 0:01:50]} Rc8 {[%emt 0:00:26]} 55. Ra4 {[%emt 0:00:43]} Re8 {[%emt 0:00:45]} 56. e5 {[%emt 0:01:05]} g6 {[%emt 0:01:07]} 57. Ra6 {[%emt 0:00:20]} Qf5 {[%emt 0:00:00]} 58. Qxf5 {[%emt 0:00:02]} gxf5 {[%emt 0:00:00]} 59. Rf6 {[%emt 0:00:04]} Bg7 {[%emt 0:00:52]} 60. Rxf5 {[%emt 0:00:06]} Ra8 {[%emt 0:00:32]} 61. Kg3 {[%emt 0:06:57]} Ra2 {[%emt 0:00:23]} 62. Kf3 {[%emt 0:00:00]} Ra3+ {[%emt 0:00:34]} 63. Kg4 {[%emt 0:00:00]} Ra2 {[%emt 0:00:03]} 64. g3 {[%emt 0:00:00]} Ra4 {[%emt 0:00:41]} 65. Kh5 {[%emt 0:00:00]} Ra6 {[%emt 0:00:48]} 66. g4 {[%emt 0:00:00]} Re6 {[%emt 0:00:29]} 67. Kh4 {[%emt 0:00:00]} Rc6 {[%emt 0:00:29]} 68. Kg3 {[%emt 0:00:18]} Rc3+ {[%emt 0:00:14]} 69. Kg2 {[%emt 0:00:03]} Rb3 {[%emt 0:00:29]} 70. Rh5 {[%emt 0:01:11]} Kh7 {[%emt 0:00:36]} 71. h4 {[%emt 0:01:48]} Kg6 {[%emt 0:00:40]} 72. Rf5 {[%emt 0:02:10]} Rb7 {[%emt 0:00:33]} 73. Kf3 {[%emt 0:00:00]} Re7 {[%emt 0:00:29]} 74. Bg3 {[%emt 0:00:00]} Rb7 {[%emt 0:00:10]} 75. Bf2 {[%emt 0:00:00]} Rb3+ {[%emt 0:00:28]} 76. Be3 {[%emt 0:00:00]} Bf8 {[%emt 0:00:22]} 77. e6 {[%emt 0:00:31]} f6 {[%emt 0:00:17]} 78. h5+ {[%emt 0:00:21]} Kg7 {[%emt 0:00:04]} 79. Rd5 {[%emt 0:00:05]} Be7 {[%emt 0:00:58]} 80. Rd7 {[%emt 0:00:42]} Kf8 {[%emt 0:00:01]} 81. Ke4 {[%emt 0:00:08]} Rb4+ {[%emt 0:00:50]} 82. Rd4 {[%emt 0:00:15]} Rb6 {[%emt 0:00:54]} 83. Bxh6+ {[%emt 0:00:06]} Ke8 {[%emt 0:00:41]} 84. Kf5 {[%emt 0:00:05]} Rb5+ {[%emt 0:00:07]} 85. Kg6 {[%emt 0:00:09]} Re5 {[%emt 0:00:03]} 86. Ra4 {[%emt 0:01:07]} Rxe6 {[%emt 0:00:07]} 87. Bg7 {[%emt 0:00:36]} f5+ {[%emt 0:00:51]} 88. Kxf5 {[%emt 0:00:02]} Kf7 {[%emt 0:00:04]} 89. Be5 {[%emt 0:01:37]} Rc6 {[%emt 0:00:13]} 90. Ra7 {[%emt 0:00:04]} Rc1 {[%emt 0:00:58]} 91. Bd6 {[%emt 0:00:22]} Rf1+ {[%emt 0:00:20]} 92. Ke4 {[%emt 0:00:02]} Re1+ {[%emt 0:00:12]} 93. Kf3 {[%emt 0:00:02]} 1-0

[Event "Hull 4NCL GM Congress 2019"]
[Site "Hull"]
[Date "2019.11.02"]
[Round "6.1"]
[White "Merry, Alan B"]
[Black "Gonda, Laszlo"]
[Result "1/2-1/2"]
[ECO "A16"]
[WhiteElo "2426"]
[BlackElo "2541"]
[Annotator "ChessBase"]
[PlyCount "46"]
[EventDate "2019.10.30"]
[EventType "tourn"]
[EventCountry "ENG"]
[SourceTitle "playchess.com"]
[Source "ChessBase"]
[SourceQuality "1"]
[TimeControl "5400+30"]

1. c4 {[%emt 0:00:00]} b6 {[%emt 0:00:00]} 2. Nc3 {[%emt 0:00:00]} Bb7 {[%emt 0:00:00]} 3. e4 {[%emt 0:00:00]} Nf6 {[%emt 0:00:00]} 4. d3 {[%emt 0:07:13]} d6 {[%emt 0:00:00]} 5. g3 {[%emt 0:00:13]} c5 {[%emt 0:00:46]} 6. Bg2 {[%emt 0:00:03]} g6 {[%emt 0:00:03]} 7. Nge2 {[%emt 0:00:13]} Bg7 {[%emt 0:00:05]} 8. O-O {[%emt 0:00:04]} Nc6 {[%emt 0:00:03]} 9. h3 {[%emt 0:00:54]} O-O {[%emt 0:01:45]} 10. Be3 {[%emt 0:00:08]} Rc8 {[%emt 0:01:19]} 11. Qd2 {[%emt 0:02:37]} Ne8 {[%emt 0:04:53]} 12. f4 {[%emt 0:09:42]} Nc7 {[%emt 0:06:48]} 13. f5 {[%emt 0:00:42]} Ne5 {[%emt 0:00:27]} 14. g4 {[%emt 0:10:59]} e6 {[%emt 0:04:32]} 15. Nf4 {[%emt 0:09:59]} Qd7 {[%emt 0:02:08]} 16. Rae1 {[%emt 0:03:18]} Rfe8 {[%emt 0:03:55]} 17. b3 {[%emt 0:14:30]} b5 {[%emt 0:02:16]} 18. Rf2 {[%emt 0:05:08]} a5 {[%emt 0:01:17]} 19. a4 {[%emt 0:06:08]} bxa4 {[%emt 0:02:08]} 20. Nxa4 {[%emt 0:01:15]} Rb8 {[%emt 0:00:14]} 21. f6 {[%emt 0:04:56]} Bxf6 {[%emt 0:07:33]} 22. Nxg6 {[%emt 0:01:01]} fxg6 {[%emt 0:02:11]} 23. Rxf6 {[%emt 0:00:08]} Rf8 {[%emt 0:59:07]} 1/2-1/2

[Event "Hull 4NCL GM Congress 2019"]
[Site "Hull"]
[Date "2019.11.02"]
[Round "6.5"]
[White "Roberson, Peter T"]
[Black "Palliser, Richard J D"]
[Result "1/2-1/2"]
[ECO "B22"]
[WhiteElo "2437"]
[BlackElo "2413"]
[Annotator "NA"]
[PlyCount "41"]
[EventDate "2019.10.30"]
[EventType "tourn"]
[EventCountry "ENG"]
[SourceTitle "playchess.com"]
[Source "ChessBase"]
[SourceQuality "1"]
[TimeControl "5400+30"]

1. e4 {[%emt 0:00:00]} c5 {[%emt 0:00:10]} 2. c3 {[%emt 0:00:00]} Nf6 {[%emt 0:00:04]} 3. e5 {[%emt 0:00:00]} Nd5 {[%emt 0:00:59]} 4. Bc4 {[%emt 0:00:08]} Nb6 {[%emt 0:00:08]} 5. Bb3 {[%emt 0:00:03]} Nc6 {[%emt 0:02:39]} 6. d4 {[%emt 0:03:36]} cxd4 {[%emt 0:00:04]} 7. cxd4 {[%emt 0:00:08]} d6 {[%emt 0:00:22]} 8. e6 {[%emt 0:02:51]} fxe6 {[%emt 0:00:03]} 9. Nf3 {[%emt 0:04:39]} g6 {[%emt 0:01:00]} 10. Nc3 {[%emt 0:02:21]} Bg7 {[%emt 0:00:05]} 11. h4 {[%emt 0:00:26]} e5 {[%emt 0:05:50]} 12. dxe5 {[%emt 0:00:56]} Nxe5 {[%emt 0:02:22]} 13. Ng5 {[%emt 0:19:28]} Bf5 {[%emt 0:15:47]} 14. Be6 {[%emt 0:24:30]} h6 {[%emt 0:07:21]} 15. Bxf5 {[%emt 0:00:02]} hxg5 {[%emt 0:00:04]} 16. Be6 {[%emt 0:00:18]} Nbd7 {[%emt 0:08:05]} 17. Bxg5 {[%emt 0:14:16]} Nc5 {[%emt 0:00:03]} 18. Qd5 {[%emt 0:08:23]} Nxe6 {[%emt 0:02:21]} 19. Qxe6 {[%emt 0:00:05]} Qd7 {[%emt 0:00:01]} 20. Qd5 {[%emt 0:01:57]} e6 {[%emt 0:09:37]} 21. Qd1 {[%emt 0:00:44]} 1/2-1/2

[Event "Hull 4NCL GM Congress 2019"]
[Site "Hull"]
[Date "2019.11.02"]
[Round "7.2"]
[White "Greet, Andrew N"]
[Black "Roberson, Peter T"]
[Result "1/2-1/2"]
[ECO "D37"]
[WhiteElo "2414"]
[BlackElo "2437"]
[Annotator "RC"]
[PlyCount "67"]
[EventDate "2019.10.30"]
[EventType "tourn"]
[EventCountry "ENG"]
[SourceTitle "playchess.com"]
[Source "ChessBase"]
[SourceQuality "1"]
[TimeControl "5400+30"]

1. Nf3 {[%emt 0:00:00]} Nf6 {[%emt 0:00:00]} 2. c4 {[%emt 0:00:08]} e6 {[%emt 0:00:23]} 3. d4 {[%emt 0:01:27]} d5 {[%emt 0:00:29]} 4. e3 {[%emt 0:00:20]} Be7 {[%emt 0:02:37]} 5. Bd3 {[%emt 1:30:35]} O-O {[%emt 0:00:28]} 6. O-O {[%emt 0:00:00]} dxc4 {[%emt 0:07:59]} 7. Bxc4 {[%emt 0:00:00]} c5 {[%emt 0:00:03]} 8. Nc3 {[%emt 0:00:00]} a6 {[%emt 0:04:48]} 9. dxc5 {[%emt 0:00:00]} Bxc5 {[%emt 0:01:04]} 10. Qe2 {[%emt 0:00:00]} b5 {[%emt 0:07:27]} 11. Bd3 {[%emt 0:00:00]} Bb7 {[%emt 0:00:02]} 12. e4 {[%emt 0:00:00]} Nbd7 {[%emt 0:04:11]} 13. Bf4 {[%emt 0:00:00]} Nh5 {[%emt 0:09:38]} 14. Be3 {[%emt 0:00:00]} Bxe3 {[%emt 0:12:23]} 15. Qxe3 {[%emt 0:00:00]} Qb6 {[%emt 0:02:46]} 16. Rfe1 {[%emt 0:00:00]} Qxe3 {[%emt 0:02:20]} 17. Rxe3 {[%emt 0:00:00]} Nf4 {[%emt 0:03:17]} 18. Bf1 {[%emt 0:00:00]} Rfd8 {[%emt 0:04:18]} 19. Rd1 {[%emt 0:00:00]} Nb6 {[%emt 0:05:36]} 20. Rxd8+ {[%emt 0:00:00]} Rxd8 {[%emt 0:00:03]} 21. g3 {[%emt 0:00:00]} Ng6 {[%emt 0:01:11]} 22. Rd3 {[%emt 0:00:00]} Rxd3 {[%emt 0:00:17]} 23. Bxd3 {[%emt 0:00:00]} Kf8 {[%emt 0:00:53]} 24. b4 {[%emt 0:00:00]} Ke7 {[%emt 0:02:12]} 25. Kf1 {[%emt 0:00:00]} Kd6 {[%emt 0:03:52]} 26. Ke2 {[%emt 0:00:00]} e5 {[%emt 0:00:27]} 27. Nd2 {[%emt 0:00:00]} Nf8 {[%emt 0:04:26]} 28. Nb3 {[%emt 0:00:00]} Ne6 {[%emt 0:00:18]} 29. Ke3 {[%emt 0:00:00]} g5 {[%emt 0:00:37]} 30. Be2 {[%emt 0:00:00]} Bc8 {[%emt 0:02:49]} 31. Nd1 {[%emt 0:00:00]} Nc7 {[%emt 0:03:59]} 32. Nc5 {[%emt 0:00:27]} Ne6 {[%emt 0:02:58]} 33. Nb3 {[%emt 0:00:37]} Nc7 {[%emt 0:00:04]} 34. Nc5 {[%emt 0:00:33]} 1/2-1/2

[Event "Hull 4NCL GM Congress 2019"]
[Site "Hull"]
[Date "2019.11.03"]
[Round "9.1"]
[White "Greet, Andrew N"]
[Black "Merry, Alan B"]
[Result "1-0"]
[ECO "A47"]
[WhiteElo "2414"]
[BlackElo "2426"]
[Annotator "RC"]
[PlyCount "89"]
[EventDate "2019.10.30"]
[EventType "tourn"]
[EventCountry "ENG"]
[SourceTitle "playchess.com"]
[Source "ChessBase"]
[SourceQuality "1"]
[TimeControl "5400+30"]

1. d4 {[%emt 0:00:00]} Nf6 {[%emt 0:00:00]} 2. Nf3 {[%emt 0:00:33]} b6 {[%emt 0:00:00]} 3. Bg5 {[%emt 0:02:55]} Bb7 {[%emt 0:00:00]} 4. Nbd2 {[%emt 0:00:14]} g6 {[%emt 0:00:00]} 5. Bxf6 {[%emt 0:00:22]} exf6 {[%emt 0:00:00]} 6. g3 {[%emt 0:00:27]} Bg7 {[%emt 0:00:00]} 7. Bg2 {[%emt 0:00:06]} O-O {[%emt 0:00:00]} 8. O-O {[%emt 0:00:09]} f5 {[%emt 0:00:00]} 9. e3 {[%emt 0:00:17]} c5 {[%emt 0:00:03]} 10. c3 {[%emt 0:02:13]} d5 {[%emt 0:00:06]} 11. Ne1 {[%emt 0:03:21]} Nd7 {[%emt 0:02:05]} 12. Nd3 {[%emt 0:02:33]} Rc8 {[%emt 0:01:27]} 13. dxc5 {[%emt 0:01:18]} bxc5 {[%emt 0:01:34]} 14. c4 {[%emt 0:01:09]} Nb6 {[%emt 0:01:20]} 15. cxd5 {[%emt 0:03:13]} Bxd5 {[%emt 0:01:20]} 16. Bxd5 {[%emt 0:02:33]} Qxd5 {[%emt 0:00:05]} 17. Nf4 {[%emt 0:00:16]} Qe5 {[%emt 0:07:27]} 18. Rb1 {[%emt 0:01:32]} Rfd8 {[%emt 0:02:07]} 19. Qc2 {[%emt 0:05:15]} c4 {[%emt 0:00:31]} 20. Nf3 {[%emt 0:07:07]} Qa5 {[%emt 0:22:04]} 21. b4 {[%emt 0:01:40]} cxb3 {[%emt 0:02:20]} 22. Qxb3 {[%emt 0:00:09]} Rc3 {[%emt 0:00:57]} 23. Qb5 {[%emt 0:07:08]} Qxb5 {[%emt 0:01:53]} 24. Rxb5 {[%emt 0:00:05]} Ra3 {[%emt 0:00:07]} 25. Rc1 {[%emt 0:00:24]} Rxa2 {[%emt 0:01:06]} 26. h4 {[%emt 0:03:57]} h6 {[%emt 0:04:56]} 27. Rc7 {[%emt 0:00:27]} Rd7 {[%emt 0:01:32]} 28. Rxd7 {[%emt 0:01:30]} Nxd7 {[%emt 0:00:01]} 29. h5 {[%emt 0:00:54]} Nf8 {[%emt 0:05:56]} 30. Rb8 {[%emt 0:03:07]} Rb2 {[%emt 0:03:19]} 31. Ra8 {[%emt 0:00:32]} g5 {[%emt 0:00:23]} 32. Nd5 {[%emt 0:00:38]} Rb7 {[%emt 0:00:09]} 33. Nd4 {[%emt 0:05:05]} Bxd4 {[%emt 0:12:45]} 34. exd4 {[%emt 0:02:44]} Kg7 {[%emt 0:01:26]} 35. Ne3 {[%emt 0:00:20]} f4 {[%emt 0:05:53]} 36. Nf5+ {[%emt 0:01:38]} Kf6 {[%emt 0:00:04]} 37. g4 {[%emt 0:01:16]} Nd7 {[%emt 0:07:50]} 38. Nxh6 {[%emt 0:03:52]} Kg7 {[%emt 0:01:57]} 39. Nf5+ {[%emt 0:00:14]} Kh7 {[%emt 0:00:02]} 40. Nd6 {[%emt 0:03:48]} Rb1+ {[%emt 0:04:40]} 41. Kg2 {[%emt 0:00:09]} Nf6 {[%emt 0:00:19]} 42. Rxa7 {[%emt 0:00:52]} Nxg4 {[%emt 0:00:26]} 43. Nxf7 {[%emt 0:00:43]} Nf6 {[%emt 0:01:40]} 44. Ne5+ {[%emt 0:01:05]} Kh6 {[%emt 0:03:46]} 45. Ra6 {[%emt 0:02:03]} 1-0